Workbook

Sheet Startup Budget
B3: Startup Budget
B4: =NOW() -> 2010-04-21T13:07:23.530
C6: Cash Needed | D6: % of | F6: Actual Cash | G6: % of | I6: % of
C7: to Start | D7: Total | F7: Spent | G7: Total | H7: Variance | I7: Total
B8: Monthly Costs
B9: Salary of owner-manager | C9: $6,000 | D9: =IF(C9,+C9/C40,"") -> 13.7% | F9: $6,500 | G9: =IF(F9,+F9/F40,"") -> 13.9% | H9: =IF(SUM(C9,F9),C9-F9,"") -> ($500) | I9: =IF(SUM(H9),+H9/$H$40,"") -> 15.8%
B10: All other salaries and wages | C10: 7,000 | D10: =IF(C10,+C10/C40,"") -> 16.0% | F10: 7,100 | G10: =IF(F10,+F10/F40,"") -> 15.1% | H10: =IF(SUM(C10,F10),C10-F10,"") -> (100) | I10: =IF(SUM(H10),+H10/$H$40,"") -> 3.2%
B11: Rent | C11: 1,000 | D11: =IF(C11,+C11/C40,"") -> 2.3% | F11: 900 | G11: =IF(F11,+F11/F40,"") -> 1.9% | H11: 100 | I11: -3.2%
B12: Advertising | C12: 2,000 | D12: =IF(C12,+C12/C40,"") -> 4.6% | F12: 2,000 | G12: =IF(F12,+F12/F40,"") -> 4.3% | H12: 0
B13: Delivery expense | C13: 400 | D13: =IF(C13,+C13/C40,"") -> 0.9% | F13: 1,000 | G13: =IF(F13,+F13/F40,"") -> 2.1% | H13: (600) | I13: 19.0%
B14: Supplies | C14: 500 | D14: =IF(C14,+C14/C40,"") -> 1.1% | F14: 1,500 | G14: =IF(F14,+F14/F40,"") -> 3.2% | H14: (1,000) | I14: 31.6%
B15: Telephone | C15: 500 | D15: =IF(C15,+C15/C40,"") -> 1.1% | F15: 500 | G15: =IF(F15,+F15/F40,"") -> 1.1% | H15: 0
B16: Other utilities | C16: 500 | D16: =IF(C16,+C16/C40,"") -> 1.1% | F16: 760 | G16: =IF(F16,+F16/F40,"") -> 1.6% | H16: (260) | I16: 8.2%
B17: Insurance | C17: 600 | D17: =IF(C17,+C17/C40,"") -> 1.4% | F17: 600 | G17: =IF(F17,+F17/F40,"") -> 1.3% | H17: 0
B18: Taxes, including social security | C18: 1,000 | D18: =IF(C18,+C18/C40,"") -> 2.3% | F18: 1,000 | G18: =IF(F18,+F18/F40,"") -> 2.1% | H18: 0
B19: Interest | C19: 500 | D19: =IF(C19,+C19/C40,"") -> 1.1% | F19: 500 | G19: =IF(F19,+F19/F40,"") -> 1.1% | H19: 0
B20: Maintenance | C20: 300 | D20: =IF(C20,+C20/C40,"") -> 0.7% | F20: 300 | G20: =IF(F20,+F20/F40,"") -> 0.6% | H20: 0
B21: Legal and other professional fees | C21: 3,000 | D21: =IF(C21,+C21/C40,"") -> 6.9% | F21: 3,300 | G21: =IF(F21,+F21/F40,"") -> 7.0% | H21: (300) | I21: 9.5%
B22: Miscellaneous | C22: 500 | D22: =IF(C22,+C22/C40,"") -> 1.1% | F22: 500 | G22: =IF(F22,+F22/F40,"") -> 1.1% | H22: 0
B23: Subtotal | C23: =IF(SUM(C9:C22),SUM(C9:C22),"") -> $23,800 | D23: =IF(SUM(C23),+C23/C40,"") -> 54.4% | F23: =IF(SUM(F9:F22),SUM(F9:F22),"") -> $26,460 | G23: =IF(SUM(F23),+F23/F40,"") -> 56.4% | H23: =IF(SUM(H9:H22),SUM(H9:H22),"") -> ($2,660) | I23: =IF(SUM(H23),+H23/H40,"") -> 84.2%
B26: One-Time Costs
B27: Fixtures and Equipment | C27: $10,000 | D27: =IF(C27,+C27/C40,"") -> 22.9% | F27: $11,000 | G27: =IF(F27,+F27/F40,"") -> 23.4% | H27: =IF(SUM(C27,F27),C27-F27,"") -> ($1,000) | I27: =IF(SUM(H27),+H27/$H$40,"") -> 31.6%
B28: Decorating and remodeling | C28: 1,000 | D28: =IF(C28,+C28/C40,"") -> 2.3% | F28: 1,200 | G28: =IF(F28,+F28/F40,"") -> 2.6% | H28: =IF(SUM(C28,F28),C28-F28,"") -> (200) | I28: =IF(SUM(H28),+H28/$H$40,"") -> 6.3%
B29: Installation charges | C29: 500 | D29: =IF(C29,+C29/C40,"") -> 1.1% | F29: 600 | G29: =IF(F29,+F29/F40,"") -> 1.3% | H29: (100) | I29: 3.2%
B30: Starting inventory | C30: 5,000 | D30: =IF(C30,+C30/C40,"") -> 11.4% | F30: 4,000 | G30: =IF(F30,+F30/F40,"") -> 8.5% | H30: 1,000 | I30: -31.6%
B31: Deposits with public utilities | C31: 1,000 | D31: =IF(C31,+C31/C40,"") -> 2.3% | F31: 1,200 | G31: =IF(F31,+F31/F40,"") -> 2.6% | H31: (200) | I31: 6.3%
B32: Legal and other professional fees | C32: 500 | D32: =IF(C32,+C32/C40,"") -> 1.1% | F32: 500 | G32: =IF(F32,+F32/F40,"") -> 1.1% | H32: 0
B33: Licenses and permits | C33: 500 | D33: =IF(C33,+C33/C40,"") -> 1.1% | F33: 500 | G33: =IF(F33,+F33/F40,"") -> 1.1% | H33: 0
B34: Advertising and promotion for opening | C34: 500 | D34: =IF(C34,+C34/C40,"") -> 1.1% | F34: 500 | G34: =IF(F34,+F34/F40,"") -> 1.1% | H34: 0
B35: Cash | C35: 750 | D35: =IF(C35,+C35/C40,"") -> 1.7% | F35: 750 | G35: =IF(F35,+F35/F40,"") -> 1.6% | H35: 0
B36: Other | C36: 200 | D36: =IF(C36,+C36/C40,"") -> 0.5% | F36: 200 | G36: =IF(F36,+F36/F40,"") -> 0.4% | H36: 0
B37: Subtotal | C37: =IF(SUM(C27:C36),SUM(C27:C36),"") -> $19,950 | D37: =IF(SUM(C37),+C37/C40,"") -> 45.6% | F37: =IF(SUM(F27:F36),SUM(F27:F36),"") -> $20,450 | G37: =IF(SUM(F37),+F37/F40,"") -> 43.6% | H37: =IF(SUM(H27:H36),SUM(H27:H36),"") -> ($500) | I37: =IF(SUM(H37),+H37/H40,"") -> 15.8%
B40: Totals | C40: =IF(SUM(C9:C22,C27:C36),SUM(C9:C22,C27:C36),"") -> $43,750 | D40: =IF(SUM(C40),SUM(D9:D22)+SUM(D27:D36),"") -> 100% | F40: =IF(SUM(F9:F22,F27:F36),SUM(F9:F22,F27:F36),"") -> $46,910 | G40: =IF(SUM(F40),SUM(G9:G22)+SUM(G27:G36),"") -> 100% | H40: =IF(SUM(H9:H22,H27:H36),SUM(H9:H22,H27:H36),"") -> ($3,160) | I40: =IF(SUM(H40),SUM(I9:I22)+SUM(I27:I36),"") -> 100%
